{"text_format":"1","workbook":"xlsx","n_sheets":4,"sheets":["Vejledning","UU vejledere","UU konsulenter","satser"],"not_rendered":{"charts":0,"images":0,"macros":1,"external_links":0,"defined_names":0,"comments":3,"pivot_tables":0},"unopened":[],"bounds":{"document_bytes":16777216,"sheet_cells":100000,"rows_first":2000,"rows_last":500,"rows_between":2000,"halvings":0,"cell_chars":16384,"cell_head_chars":4096},"cells_cut":0,"cells_raw":0,"read":"whole","date_system":"1900"}

{"sheet":"Vejledning","index":0,"n_rows":26,"n_cols":1,"rows_kept":26,"cut":false,"hidden":false,"merged":[]}
["Vejledning til regneark, lønberegning."]
[]
["Regnearket anvendes til kontrol af lønsedler."]
["Regnearket kan anvendes af vejledere og konsulenter ansat ved Ungdommens Uddannelsesvejlednng i Odense."]
[]
["Find det relevante ark i regnearket"]
["UU vejledere for vejledere ansat på Grundløn 31"]
["UU konsulenter. Når man har 8 års erfaring efter endt uddannelse og har genneført vejlederuddannelsen ansættes man som konsulent på grundløn 45."]
[]
["Der kan kun indtastes i de gule felter!"]
[]
["Beskæftigelsesgrad indtastes med ugentligt timetal (fremgår af lønsedlen)"]
["Grundløn og andre tillæg gældende for alle fremkommer automatisk."]
["For vejledere indtastes tillæg for anciennitet ved at taste 1 ved relevant anciennitet (fremgår af lønsedlen)"]
["Funktions- og kvalifikationsløn indtastes med 1 ud for funktionen/kvalifikationen"]
[]
["Nogle vejledere og konsulenter har personlige tillæg. Disse indtastes med det månedlige beløb, der fremgår af lønsedlen."]
["Der kan evt. indtastes navn på disse tillæg."]
[]
["Månedslønnen fremkommer automatisk og er sammenlignelig med lønsedlen"]
[]
["Bemærk: Der kan fremkomme øreafvigelser p.g.a. afrunding."]
[]
["Kørselsgodtgørelse o.l. udbetales konkret og fremgår ikke af lønberegneren"]
[]
["Kommentarer eller rettelser er velkomne, kontakt Bo Tryggedsson, Odense Lærerforening."]

{"sheet":"UU vejledere","index":1,"n_rows":30,"n_cols":3,"rows_kept":30,"cut":false,"hidden":false,"merged":[[1,0,2,2],[0,0,0,1]]}
["Lønberegning niveau",null,{"$f":"satser!F1","v":"01.04.2018"}]
["UU Vejledere"]
[]
[]
["Navn: "]
["Måned"]
[]
["Beskæftigelsesgrad (indsæt ugentligt timetal)",37]
[null,null,"Månedsløn"]
["Grundløn trin 31",31,{"$f":"satser!B11*B8/37","v":27392}]
["Grundlønstillæg - lærer",null,{"$f":"IF(B13=1,\"\",satser!I3*B8/37)","v":340.41874999999999}]
["Anciennitetstillæg (trin 31-35)",null,{"$f":"IF((B12+B13)>1,\"Fejl: kun et tillæg\",IF(B12=1,satser!D15*B8/37,\"\"))","v":""}]
["Anciennitetstillæg (trin 31-40)",null,{"$f":"IF((B12+B13)>1,\"Fejl: kun et tillæg\",IF(B13=1,satser!D20*B8/37,\"\"))","v":""}]
["Anciennitetstillæg - lærer",null,{"$f":"IF(AND(B14=1,B13=1),satser!I4*B8/37,\"\")","v":""}]
[]
[]
["Funktions- og kvalifikationsløn: Tast 1 i det gule felt, hvis omfattet:"]
["Vejlederfunktion UUO",null,{"$f":"satser!I12*B8/37","v":2042.5099999999998}]
["Tillidsrep. UUO",null,{"$f":"(IF(B19>1,\"Fejl:kun et tillæg\",IF(B19>0,B19*satser!I15,\"\")))","v":""}]
["AMR funktion",null,{"$f":"(IF(B20>1,\"Fejl:kun et tillæg\",IF(B20>0,B20*satser!I16,\"\")))","v":""}]
[]
["Vejlederuddannelse",null,{"$f":"(IF(B22>1,\"Fejl:kun et tillæg\",IF(B22>0,B22*satser!I18*B8/37,\"\")))","v":""}]
["Vilje til faglig samt metodemæssig udvikling. Fleksibel og forandringsvillig",null,{"$f":"(IF(B23+B24>1,\"Fejl:kun et tillæg\",IF(B23>0,B23*satser!I19*B8/37,\"\")))","v":""}]
["Særlig fagområde",null,{"$f":"(IF(B24+B23>1,\"Fejl:kun et tillæg\",IF(B24>0,B24*satser!I20*B8/37,\"\")))","v":""}]
[]
["Andre tillæg (fx personlig erfaring) Indtast beløb fra lønseddel"]
[]
[]
[]
["Fast løn i alt",null,{"$f":"SUM(C10:C29)","v":29774.928749999999}]

{"sheet":"UU konsulenter","index":2,"n_rows":27,"n_cols":3,"rows_kept":27,"cut":false,"hidden":false,"merged":[[0,0,0,1],[1,0,2,2]]}
["Lønberegning niveau",null,{"$f":"satser!F1","v":"01.04.2018"}]
["UU Konsulenter"]
[]
[]
["Navn: "]
["Måned"]
[]
["Beskæftigelsesgrad (indsæt ugentligt timetal)",37]
[null,null,"Månedsløn"]
["Grundløn trin 45",45,{"$f":"satser!B25*B8/37","v":35091.58}]
["Grundlønstillæg - skolekonsulent",null,{"$f":"satser!I5","v":1361.675}]
[]
[]
["Funktions- og kvalifikationsløn: Tast 1 i det gule felt, hvis omfattet:"]
["Konsul.funk. UUO med 8 års anc.",null,{"$f":"(IF(B15+B16>1,\"Fejl:kun et tillæg\",IF(B15>0,B15*satser!J13*B8/37,\"\")))","v":""}]
["Konsulentfunk. UUO",null,{"$f":"(IF(B16+B15>1,\"Fejl:kun et tillæg\",IF(B16>0,B16*satser!J14*B8/37,\"\")))","v":""}]
["Tillidsrep. UUO",null,{"$f":"(IF(B17>1,\"Fejl:kun et tillæg\",IF(B17>0,B17*satser!J15,\"\")))","v":""}]
["AMR funktion",null,{"$f":"(IF(B18>1,\"Fejl:kun et tillæg\",IF(B18>0,B18*satser!J16,\"\")))","v":""}]
[]
["Vilje til faglig samt metodemæssig udvikling. Fleksibel og forandringsvillig",null,{"$f":"(IF(B20+B21>1,\"Fejl:kun et tillæg\",IF(B20>0,B20*satser!I19*B8/37,\"\")))","v":""}]
["Særlig fagområde",null,{"$f":"(IF(B21+B20>1,\"Fejl:kun et tillæg\",IF(B21>0,B21*satser!I20*B8/37,\"\")))","v":""}]
[]
["Andre tillæg (fx personlig erfaring) Indtast beløb fra lønseddel"]
[]
[]
[]
["Fast løn i alt",null,{"$f":"SUM(C10:C26)","v":36453.255000000005}]

{"sheet":"satser","index":3,"n_rows":28,"n_cols":10,"rows_kept":28,"cut":false,"hidden":false,"merged":[[0,0,0,4],[18,10,18,11],[9,6,9,7],[1,6,1,7],[2,2,2,3],[5,2,5,3]]}
["Satser pr. ",null,null,null,null,"01.04.2018"]
[null,null,null,null,null,null,"Grundbeløb",null,"Månedligt beløb pr.",{"$f":"F1","v":"01.04.2018"}]
[null,null,null,null,null,"Grundlønstillæg - lærer",3000,null,{"$f":"G3*C28/12","v":340.41874999999999}]
[null,null,null,null,null,"Anciennitetstillæg - lærer",10000,null,{"$f":"G4*C28/12","v":1134.7291666666667}]
[null,null,null,null,null,"Grundlønstillæg - skolekonsulent",null,12000,{"$f":"H5*C28/12","v":1361.675}]
["Løntrin ","Pr. måned","Anciennitetstillæg",null,null,"Stillingstillæg - lærer",null,13000,{"$f":"H6*C28/12","v":1475.1479166666666}]
[null,null,null,null,null,"Pension - stillingstilæg lærer",null,2202,{"$f":"H7*C28/12","v":249.86736250000001},"Beløbet er 17,3% af 13.000 fratrukket særlig ferie"]
[]
[]
[null,null,null,null,null,null,"Grundbeløb",null,"Månedligt beløb pr.",{"$f":"F1","v":"01.04.2018"}]
[31,27392,null,null,null,"Funktions- og kvalifikationsløn: ","Vejledere","Konsulenter","Vejledere","Konsulenter"]
[32,27833.42,null,null,null,"Vejlederfunktion UUO",18000,null,{"$f":"ROUND(G12*$C$28/12,2)","v":2042.51}]
[33,28283.75,null,null,null,"Konsul.funk. UUO med 8 års anc.",null,1000,null,{"$f":"ROUND(H13*$C$28/12,2)","v":113.47}]
[34,28743.919999999998,null,null,null,"Konsulentfunk. UUO",null,2000,null,{"$f":"ROUND(H14*$C$28/12,2)","v":226.95}]
[35,29212.92,"31 - 35",{"$f":"B15-B11","v":1820.9199999999983},null,"TR-tillæg",5350,5500,{"$f":"ROUND(G15*$C$28/12,2)","v":607.08000000000004},{"$f":"ROUND(H15*$C$28/12,2)","v":624.1}]
[36,29691.919999999998,null,null,null,"AMR funktion",5350,5000,{"$f":"ROUND(G16*$C$28/12,2)","v":607.08000000000004},{"$f":"ROUND(H16*$C$28/12,2)","v":567.36}]
[37,30180.33]
[38,30701.17,null,null,null,"Vejlederuddannelse",10500,null,{"$f":"ROUND(G18*$C$28/12,2)","v":1191.47}]
[39,31220.17,null,null,null,"Vilje til faglig samt metodemæssig udvikling. Fleksibel og forandringsvillig",2500,2500,{"$f":"ROUND(G19*$C$28/12,2)","v":283.68},{"$f":"ROUND(H19*$C$28/12,2)","v":283.68}]
[40,31749.83,"31 - 40",{"$f":"B20-B11","v":4357.8300000000017},null,"Særlig fagområde",6000,6000,{"$f":"ROUND(G20*$C$28/12,2)","v":680.84},{"$f":"ROUND(H20*$C$28/12,2)","v":680.84}]
[41,32290.080000000002]
[42,32841.08]
[43,33571]
[44,34321]
[45,35091.58]
[]
[]
["Reguleringsfaktor:",null,1.361675]